fUST/lending_fUST_20260319
["ID","MTS","AMOUNT","RATE_DAILY","PERIOD"]
[408595112,1773911031496,1000.0,3.458e-05,2]
[408595115,1773911055368,-1000.0,3.389e-05,2]
[408595116,1773911055711,-1000.0,3.389e-05,2]
[408595117,1773911056032,-1000.0,3.389e-05,2]
[408595118,1773911056368,-1000.0,3.389e-05,2]
[408595119,1773911056708,-1000.0,3.389e-05,2]
[408595120,1773911057019,-1000.0,3.423e-05,2]
[408595121,1773911057319,-1000.0,3.423e-05,2]
[408595122,1773911057784,-1000.0,3.423e-05,2]
[408595123,1773911058225,-1000.0,3.423e-05,2]
[408595124,1773911058562,-1000.0,3.423e-05,2]
[408595125,1773911058866,-1000.0,3.458e-05,2]
[408595126,1773911059178,-1000.0,3.458e-05,2]
[408595127,1773911081515,-1000.0,3.493e-05,2]
[408595128,1773911081953,-1000.0,3.493e-05,2]
[408595129,1773911082336,-1000.0,3.493e-05,2]
[408595130,1773911082793,-1000.0,3.493e-05,2]
[408595131,1773911083115,-1000.0,3.493e-05,2]
[408595133,1773911120070,-1000.0,3.493e-05,2]
[408595134,1773911121645,-1000.0,3.493e-05,2]
[408595135,1773911122050,-1000.0,3.493e-05,2]
[408595136,1773911122868,-1000.0,3.493e-05,2]
[408595137,1773911122993,-1000.0,3.493e-05,2]
[408595139,1773911152320,-1000.0,3.493e-05,2]
[408595140,1773911152671,-1000.0,3.493e-05,2]
[408595141,1773911153009,-1000.0,3.493e-05,2]
[408595142,1773911153332,-1000.0,3.493e-05,2]
[408595143,1773911153730,-1000.0,3.493e-05,2]
[408595144,1773911170767,-1000.0,3.493e-05,2]
[408595145,1773911171099,-1000.0,3.493e-05,2]
[408595146,1773911171487,-1000.0,3.493e-05,2]
[408595147,1773911171909,-1000.0,3.493e-05,2]
[408595148,1773911172233,-1000.0,3.493e-05,2]
[408595151,1773911188674,-1000.0,3.493e-05,2]
[408595152,1773911189615,-1000.0,3.493e-05,2]
[408595153,1773911189654,-1000.0,3.493e-05,2]
[408595154,1773911190038,-1000.0,3.493e-05,2]
[408595155,1773911190486,-1000.0,3.493e-05,2]
[408595156,1773911194027,1000.0,3.5e-05,2]
[408595157,1773911194050,1000.0,3.5e-05,2]
[408595158,1773911194073,1000.0,3.5e-05,2]
[408595159,1773911194096,1000.0,3.5e-05,2]
[408595160,1773911194118,1000.0,3.5e-05,2]
[408595161,1773911201300,300.0,2.002e-05,2]
[408595162,1773911201326,300.0,2.002e-05,2]
[408595163,1773911201350,300.0,2.002e-05,2]
[408595164,1773911201375,300.0,2.002e-05,2]
[408595165,1773911201399,300.0,2.002e-05,2]
[408595166,1773911201424,300.0,2.002e-05,2]
[408595167,1773911201448,300.0,2.002e-05,2]
[408595168,1773911201473,300.0,2.002e-05,2]
[408595169,1773911204259,-1000.0,2.002e-05,2]
[408595170,1773911204600,-1000.0,2.002e-05,2]
[408595171,1773911205028,-1000.0,2.002e-05,2]
[408595172,1773911205339,-1000.0,2.002e-05,2]
[408595173,1773911205675,-1000.0,2.002e-05,2]
[408595174,1773911206145,-1000.0,2.002e-05,2]
[408595175,1773911206442,-1000.0,2.002e-05,2]
[408595176,1773911206749,-600.0,2.002e-05,2]
[408595177,1773911206771,-400.0,3.5e-05,2]
[408595178,1773911207091,-1000.0,3.5e-05,2]
[408595179,1773911207585,-1000.0,3.5e-05,2]
[408595180,1773911207992,-1000.0,3.5e-05,2]
[408595181,1773911208143,5000.0,2.001e-05,2]
[408595182,1773911208316,-1000.0,3.5e-05,2]
[408595183,1773911208650,-600.0,3.5e-05,2]
[408595185,1773911215184,10000.0,8.4e-05,120]
[408595186,1773911229440,10000.0,2.001e-05,2]
[408595207,1773911237596,-781.65643266,3.493e-05,2]
[408595240,1773911265381,-1000.0,3.493e-05,2]
[408595241,1773911265720,-1000.0,3.493e-05,2]
[408595243,1773911266033,-1000.0,3.493e-05,2]
[408595246,1773911266353,-1000.0,3.493e-05,2]
[408595249,1773911266663,-1000.0,3.493e-05,2]
[408595254,1773911267866,1000.0,3.458e-05,2]
[408595255,1773911267886,1000.0,3.458e-05,2]
[408595256,1773911267905,1000.0,3.458e-05,2]
[408595257,1773911267941,-1000.0,3.458e-05,2]
[408595259,1773911271581,-1000.0,3.458e-05,2]
[408595265,1773911299511,-1000.0,3.492e-05,2]
[408595266,1773911299839,-1000.0,3.492e-05,2]
[408595267,1773911300155,-1000.0,3.492e-05,2]
[408595268,1773911300608,-1000.0,3.492e-05,2]
[408595269,1773911300935,-1000.0,3.492e-05,2]
[408595270,1773911315939,-1000.0,3.492e-05,2]
[408595271,1773911316111,-1000.0,3.492e-05,2]
[408595272,1773911316440,-1000.0,3.492e-05,2]
[408595273,1773911316890,-1000.0,3.492e-05,2]
[408595274,1773911317220,-1000.0,3.492e-05,2]
[408595275,1773911338083,-1000.0,3.492e-05,2]
[408595276,1773911338539,-1000.0,3.492e-05,2]
[408595277,1773911338872,-1000.0,3.492e-05,2]
[408595278,1773911339174,-1000.0,3.492e-05,2]
[408595279,1773911339492,-1000.0,3.492e-05,2]
[408595314,1773911431914,-340.07745445,3.492e-05,2]
[408595322,1773911437834,-4659.92254555,3.492e-05,2]
[408595323,1773911437845,-151.0,3.5e-05,2]
[408595324,1773911437855,-151.0,3.5e-05,2]
[408595325,1773911437865,-151.83648464,3.5e-05,2]
[408595326,1773911437875,-5000.0,3.527e-05,2]
[408595327,1773911437886,-300.0,3.531e-05,2]
[408595328,1773911437896,-800.0,3.532e-05,3]
[408595329,1773911437909,-470.6513881,3.6e-05,2]
[408595330,1773911437918,-71110.60359907,3.624e-05,2]
[408595331,1773911437930,-334.62884682,3.624e-05,2]
[408595332,1773911437949,-270.6,3.624e-05,2]
[408595333,1773911437960,-29197.67232786,3.624e-05,2]
[408595340,1773911441409,-918.34405589,3.624e-05,2]
[408595353,1773911446097,-5000.0,3.588e-05,2]
[408595354,1773911446108,-17804.0011941,3.624e-05,2]
[408595355,1773911446119,-5090.24999971,3.624e-05,2]
[408595362,1773911756687,-5000.0,3.481e-05,2]
[408595363,1773911771051,-5000.0,3.446e-05,2]
[408595364,1773911777485,-5000.0,3.516e-05,2]
[408595365,1773911783227,-5000.0,3.524e-05,2]
[408595366,1773911833956,-5000.0,3.489e-05,2]
[408595367,1773911835892,-5000.0,3.524e-05,2]
[408595368,1773911838411,-300.0,3.559e-05,2]
[408595369,1773911838433,-1874.1975563,3.56e-05,2]
[408595370,1773911838454,-800.0,3.582e-05,3]
[408595371,1773911843040,2025.8024437,3.597e-05,2]
[408595372,1773911863512,-5000.0,3.524e-05,2]
[408595373,1773911864524,-5000.0,3.524e-05,2]
[408595374,1773911865509,-5000.0,3.524e-05,2]
[408595375,1773911867564,-5000.0,3.524e-05,2]
[408595376,1773911868730,-1183.38816699,3.524e-05,2]
[408595377,1773911868751,-3816.61183301,3.561e-05,2]
[408595378,1773911893191,-1183.38816699,3.561e-05,2]
[408595379,1773911893213,-2974.1975563,3.597e-05,2]
[408595381,1773911907729,842.41427671,3.597e-05,2]
[408595382,1773911919003,-5000.0,3.561e-05,2]
[408595383,1773911947226,-5000.0,3.561e-05,2]
[408595384,1773911948545,-4157.58572329,3.597e-05,2]
[408595385,1773911951048,842.41427671,3.51e-05,2]
[408595386,1773911956679,-5000.0,3.51e-05,2]
[408595387,1773911958080,-5000.0,3.51e-05,2]
[408595388,1773911965149,-5000.0,3.475e-05,2]
[408595389,1773911966341,-5000.0,3.51e-05,2]
[408595390,1773911975318,-3900.0,3.51e-05,2]
[408595391,1773912052423,-5000.0,3.475e-05,2]
[408595392,1773912073521,-4511.0,3.458e-05,2]
[408595395,1773912088926,-489.0,3.458e-05,2]
[408595396,1773912088950,-501.93817855,3.493e-05,2]
[408595397,1773912088971,-500.0,3.493e-05,2]
[408595398,1773912088991,-500.0,3.493e-05,2]
[408595399,1773912089012,-500.0,3.493e-05,2]
[408595400,1773912089033,-500.0,3.493e-05,2]
[408595401,1773912089053,-500.0,3.493e-05,2]
[408595402,1773912089074,-500.0,3.493e-05,2]
[408595404,1773912137672,-5000.0,3.473e-05,2]
[408595405,1773912137725,-500.0,3.493e-05,2]
[408595406,1773912137744,-615.66939479,3.493e-05,2]
[408595407,1773912137765,-500.0,3.493e-05,2]
[408595408,1773912137786,-788.0,3.509e-05,2]
[408595409,1773912137806,-300.0,3.509e-05,2]
[408595410,1773912147064,1208.33060521,3.51e-05,2]
[408595411,1773912154573,788.0,3.509e-05,2]
[408595413,1773912182313,300.0,3.493e-05,2]
[408595451,1773912623963,-4843.47,3.355e-05,2]
[408595483,1773912631956,-156.53,3.355e-05,2]
[408595484,1773912631965,-218.70634924,3.366e-05,2]
[408595486,1773912631975,-5000.0,3.389e-05,2]
[408595488,1773912631984,-300.0,3.468e-05,2]
[408595490,1773912631995,-200.0,3.493e-05,2]
[408595492,1773912632004,-500.0,3.493e-05,2]
[408595493,1773912632013,-500.0,3.493e-05,2]
[408595496,1773912632023,-500.0,3.493e-05,2]
[408595498,1773912632031,-500.0,3.493e-05,2]
[408595500,1773912632042,-500.0,3.493e-05,2]
[408595502,1773912632051,-11167.18746353,3.57e-05,2]
[408595504,1773912632062,-809.91138835,3.57e-05,2]
[408595506,1773912632074,-608.24692022,3.57e-05,2]
[408595508,1773912632085,-7096.458246,3.57e-05,2]
[408595529,1773912638106,-5000.0,3.534e-05,2]
[408595530,1773912638116,-59099.77652566,3.57e-05,2]
[408595535,1773912640776,-3349.70160814,3.57e-05,2]
[408595536,1773912640786,-635.69988736,3.603e-05,2]
[408595537,1773912640795,-415.56140641,3.603e-05,2]
[408595538,1773912640804,-500.0,3.603e-05,2]
[408595539,1773912640813,-500.0,3.603e-05,2]
[408595540,1773912640822,-500.0,3.603e-05,2]
[408595541,1773912640831,-800.0,3.607e-05,3]
[408595542,1773912640841,-24948.2661958,3.61e-05,2]
[408595543,1773912640852,-975.0,3.61e-05,2]
[408595544,1773912640863,-296.95309785,3.61e-05,2]
[408595545,1773912641226,-83.6253402,3.61e-05,2]
[408595546,1773912641238,-5048.68450367,3.61e-05,2]
[408595550,1773912643272,-4000.0,3.574e-05,2]
[408595551,1773912643283,-1000.0,3.574e-05,2]
[408595552,1773912643293,-1045.57457249,3.61e-05,2]
[408595554,1773912646454,-4771.89628999,3.61e-05,2]
[408595555,1773912646464,-1000.0,3.624e-05,2]
[408595556,1773912646474,-438.30536749,3.624e-05,2]
[408595557,1773912646483,-420.0,3.815e-05,2]
[408595558,1773912646493,-300.0,3.9e-05,2]
[408595559,1773912646502,-300.0,3.9e-05,2]
[408595560,1773912646512,-300.0,3.9e-05,2]
[408595561,1773912646522,-300.0,3.9e-05,2]
[408595562,1773912646532,-300.0,3.9e-05,2]
[408595563,1773912646541,-300.0,3.9e-05,2]
[408595564,1773912646550,-300.0,3.9e-05,2]
[408595565,1773912646559,-300.0,3.9e-05,2]
[408595566,1773912646568,-300.0,3.9e-05,2]
[408595567,1773912646578,-300.0,3.9e-05,2]
[408595568,1773912646587,-300.0,3.9e-05,2]
[408595569,1773912646596,-300.0,3.9e-05,2]
[408595570,1773912646606,-300.0,3.9e-05,2]
[408595571,1773912646615,-300.0,3.9e-05,2]
[408595572,1773912646625,-300.0,3.9e-05,2]
[408595573,1773912646633,-600.0,3.9e-05,2]
[408595574,1773912646643,-825.38319122,4.041e-05,2]
[408595575,1773912646652,-1000.0,4.041e-05,2]
[408595576,1773912646662,-1000.0,4.041e-05,2]
[408595577,1773912646671,-1000.0,4.041e-05,2]
[408595578,1773912646680,-197.60537834,4.041e-05,2]
[408595579,1773912646689,-1000.0,4.041e-05,2]
[408595580,1773912646698,-1000.0,4.041e-05,2]
[408595581,1773912646708,-1000.0,4.041e-05,2]
[408595582,1773912646717,-532.60290731,4.151e-05,2]
[408595583,1773912646726,-1000.0,4.151e-05,2]
[408595584,1773912646735,-587.0,4.196e-05,2]
[408595585,1773912646744,-454.8628338,4.22e-05,2]
[408595586,1773912646753,-720.0,4.29e-05,2]
[408595587,1773912646762,-161.31399344,4.296e-05,2]
[408595588,1773912646771,-2696.70939719,4.314e-05,2]
[408595589,1773912646787,-294.6725,4.314e-05,2]
[408595685,1773913174851,300.0,2.002e-05,2]
[408595696,1773913233019,5000.0,2.001e-05,2]
[408595697,1773913241059,5000.0,2.001e-05,2]
[408595698,1773913256597,5000.0,2.001e-05,2]
[408595699,1773913265130,5000.0,2.001e-05,2]
[408595701,1773913279966,5000.0,2.001e-05,2]
[408595703,1773913287690,5000.0,2.001e-05,2]
[408595706,1773913302991,5000.0,2.001e-05,2]
[408595707,1773913310807,5000.0,2.001e-05,2]
[408595710,1773913325653,5000.0,2.001e-05,2]
[408595713,1773913333929,5000.0,2.001e-05,2]
[408595720,1773913348742,5000.0,2.001e-05,2]
[408595721,1773913356506,5000.0,2.001e-05,2]
[408595722,1773913371962,5000.0,2.001e-05,2]
[408595723,1773913379709,5000.0,2.001e-05,2]
[408595724,1773913394618,5000.0,2.001e-05,2]
[408595725,1773913402413,5000.0,2.001e-05,2]
[408595726,1773913417428,5000.0,2.001e-05,2]
[408595727,1773913425933,5000.0,2.001e-05,2]
[408595728,1773913440876,5000.0,2.001e-05,2]
[408595730,1773913448588,5000.0,2.001e-05,2]
[408595734,1773913464575,5000.0,2.001e-05,2]
[408595753,1773913472343,5000.0,2.001e-05,2]
[408595771,1773913487792,5000.0,2.001e-05,2]
[408595778,1773913495524,5000.0,2.001e-05,2]
[408595780,1773913510617,5000.0,2.001e-05,2]
[408595781,1773913518954,3149.40513727,2.001e-05,2]
[408595803,1773913535047,5000.0,2.001e-05,2]
[408595815,1773913557718,5000.0,2.001e-05,2]
[408595834,1773913580679,5000.0,2.001e-05,2]
[408595835,1773913602903,5000.0,2.001e-05,2]
[408595837,1773913625281,5000.0,2.001e-05,2]
[408595840,1773913647208,5000.0,2.001e-05,2]
[408595892,1773913669521,5000.0,2.001e-05,2]
[408595893,1773913692733,5000.0,2.001e-05,2]
[408595894,1773913714978,5000.0,2.001e-05,2]
[408595923,1773913737526,5000.0,2.001e-05,2]
[408595925,1773913759596,5000.0,2.001e-05,2]
[408595927,1773913782374,5000.0,2.001e-05,2]
[408595931,1773913804353,5000.0,2.001e-05,2]
[408595934,1773913826301,5000.0,2.001e-05,2]
[408595964,1773913838347,-2626.04,2.002e-05,2]
[408595965,1773913838357,-800.0,2.929e-05,2]
[408595966,1773913838367,-300.0,3.146e-05,2]
[408595967,1773913838377,-300.0,3.147e-05,2]
[408595968,1773913838387,-300.0,3.147e-05,2]
[408595969,1773913838396,-300.0,3.147e-05,2]
[408595970,1773913838406,-300.0,3.147e-05,2]
[408595971,1773913838416,-300.0,3.147e-05,2]
[408595972,1773913838425,-300.0,3.147e-05,2]
[408595973,1773913838435,-300.0,3.147e-05,2]
[408595974,1773913838445,-176.43363966,3.147e-05,2]
[408595982,1773913840768,-123.56636034,3.147e-05,2]
[408595983,1773913840778,-300.0,3.147e-05,2]
[408595984,1773913840788,-300.0,3.147e-05,2]
[408595985,1773913840797,-300.0,3.147e-05,2]
[408595986,1773913840807,-300.0,3.147e-05,2]
[408595987,1773913840816,-300.0,3.147e-05,2]
[408595988,1773913840825,-300.0,3.147e-05,2]
[408595989,1773913840834,-300.0,3.147e-05,2]
[408595990,1773913840843,-4791.63363966,3.364e-05,2]
[408595991,1773913840854,-940.16,3.364e-05,2]
[408595992,1773913840865,-339.57081855,3.364e-05,2]
[408596001,1773913843294,-4145.01304763,3.364e-05,2]
[408596004,1773913846346,-2221.55504956,3.364e-05,2]
[408596005,1773913846357,-600.0,3.43e-05,2]
[408596006,1773913846366,-420.0,3.461e-05,2]
[408596007,1773913846376,-720.0,3.773e-05,2]
[408596008,1773913846386,-587.0,3.807e-05,2]
[408596009,1773913846395,-330.528947,3.838e-05,2]
[408596010,1773913846404,-8585.88806974,3.9e-05,2]
[408596011,1773913846560,-19579.54887496,3.9e-05,2]
[408596012,1773913846570,-500.0,3.993e-05,2]
[408596013,1773913846579,-500.0,3.993e-05,2]
[408596014,1773913846588,-500.0,3.993e-05,2]
[408596015,1773913846598,-500.0,3.993e-05,2]
[408596016,1773913846607,-500.0,3.993e-05,2]
[408596017,1773913846616,-637.83953438,3.993e-05,2]
[408596018,1773913846625,-500.0,3.993e-05,2]
[408596019,1773913846635,-330.528947,3.999e-05,2]
[408596020,1773913846644,-5035.80683228,4e-05,2]
[408596204,1773914641105,3917.9361472,2.001e-05,2]
[408596364,1773915032316,-3309.31595793,2.149e-05,2]
[408596373,1773915038825,-1690.68404207,2.149e-05,2]
[408596374,1773915038836,-800.0,2.193e-05,2]
[408596375,1773915038845,-300.0,2.199e-05,2]
[408596376,1773915038854,-7438.26595793,2.2e-05,2]
[408596377,1773915038870,-43101.73404207,2.2e-05,2]
[408596378,1773915038879,-300.0,2.243e-05,2]
[408596379,1773915038889,-300.0,2.243e-05,2]
[408596380,1773915038898,-300.0,2.243e-05,2]
[408596381,1773915038907,-300.0,2.243e-05,2]
[408596382,1773915038917,-300.0,2.243e-05,2]
[408596383,1773915038927,-300.0,2.243e-05,2]
[408596384,1773915038937,-300.0,2.243e-05,2]
[408596385,1773915038947,-300.0,2.243e-05,2]
[408596386,1773915038957,-300.0,2.243e-05,2]
[408596387,1773915038966,-300.0,2.243e-05,2]
[408596388,1773915038976,-300.0,2.243e-05,2]
[408596389,1773915038985,-300.0,2.243e-05,2]
[408596390,1773915038995,-300.0,2.243e-05,2]
[408596391,1773915039005,-300.0,2.243e-05,2]
[408596392,1773915039014,-300.0,2.243e-05,2]
[408596393,1773915039024,-600.0,2.243e-05,2]
[408596394,1773915039034,-420.0,2.419e-05,2]
[408596395,1773915039043,-720.0,2.467e-05,2]
[408596396,1773915039053,-587.0,2.661e-05,2]
[408596397,1773915039063,-864.0,2.714e-05,2]
[408596398,1773915039072,-823.0,2.927e-05,2]
[408596399,1773915039081,-1000.0,2.985e-05,2]
[408596400,1773915039090,-1152.0,3.22e-05,2]
[408596401,1773915039100,-1000.0,3.284e-05,2]
[408596402,1773915039109,-244.0,3.284e-05,2]
[408596403,1773915039119,-196.1416653,3.398e-05,2]
[408596404,1773915039129,-185.41,3.542e-05,2]
[408596405,1773915039138,-1613.0,3.542e-05,2]
[408596406,1773915039148,-1000.0,3.612e-05,2]
[408596407,1773915039157,-492.0,3.612e-05,2]
[408596408,1773915039166,-174.25,3.612e-05,2]
[408596409,1773915039175,-15259.1696986,3.708e-05,2]
[408596410,1773915039185,-170.05,3.893e-05,2]
[408596411,1773915039194,-167.86,3.896e-05,2]
[408596412,1773915039203,-1082.0,3.896e-05,2]
[408596413,1773915039213,-1000.0,3.974e-05,2]
[408596414,1773915039222,-791.0,3.974e-05,2]
[408596415,1773915039231,-162.380719,3.997e-05,2]
[408596416,1773915039240,-500.0,3.997e-05,2]
[408596417,1773915039249,-537.6845,3.997e-05,2]
[408596418,1773915039259,-500.0,3.997e-05,2]
[408596419,1773915039268,-500.0,3.997e-05,2]
[408596420,1773915039278,-500.0,3.997e-05,2]
[408596421,1773915039288,-500.0,3.997e-05,2]
[408596422,1773915039297,-500.0,3.997e-05,2]
[408596423,1773915039306,-166.43341509,3.997e-05,2]
[408596424,1773915039315,-500.0,3.997e-05,2]
[408596425,1773915039325,-500.0,3.997e-05,2]
[408596426,1773915039334,-500.0,3.997e-05,2]
[408596427,1773915039344,-500.0,3.997e-05,2]
[408596428,1773915039353,-500.0,3.997e-05,2]
[408596429,1773915039362,-500.0,3.997e-05,2]
[408596430,1773915039371,-500.0,3.997e-05,2]
[408596431,1773915039381,-500.0,3.997e-05,2]
[408596432,1773915039390,-500.0,3.997e-05,2]
[408596433,1773915039400,-500.0,3.997e-05,2]
[408596434,1773915039410,-500.0,3.997e-05,2]
[408596435,1773915039419,-360.86861348,3.997e-05,2]
[408596436,1773915039429,-5376.845,3.997e-05,2]
[408596437,1773915039438,-2150.738,3.997e-05,2]
[408596438,1773915039447,-2896.80700042,4e-05,2]
[408596439,1773915039459,-5575.788265,4.052e-05,2]
[408596440,1773915039469,-4770.3233681,4.107e-05,2]
[408596441,1773915039479,-330.528947,4.161e-05,2]
[408596442,1773915039488,-3404.7809785,4.186e-05,2]
[408596443,1773915039498,-759.709325,4.292e-05,2]
[408596444,1773915039507,-438.0,4.299e-05,2]
[408596445,1773915039518,-735.0,4.299e-05,2]
[408596446,1773915039527,-185.249,4.299e-05,2]
[408596447,1773915039536,-330.528947,4.323e-05,2]
[408596448,1773915039545,-1000.0,4.371e-05,2]
[408596449,1773915039555,-1000.0,4.371e-05,2]
[408596450,1773915039565,-150.949,4.481e-05,2]
[408596451,1773915039574,-150.261,4.481e-05,2]
[408596452,1773915039583,-150.258,4.481e-05,2]
[408596453,1773915039592,-150.572,4.481e-05,2]
[408596454,1773915039601,-250.0,4.481e-05,2]
[408596455,1773915039856,-266.405,4.481e-05,2]
[408596456,1773915039867,-1396.0,4.481e-05,2]
[408596457,1773915039876,-330.528947,4.484e-05,2]
[408596458,1773915039886,-557.5788265,4.545e-05,2]
[408596459,1773915039895,-2230.315306,4.545e-05,2]
[408596460,1773915039904,-330.528947,4.646e-05,2]
[408596461,1773915039914,-160.0,4.695e-05,3]
[408596462,1773915039924,-835.0,4.7e-05,2]
[408596463,1773915039933,-160.0,4.801e-05,4]
[408596464,1773915039943,-1000.0,4.808e-05,2]
[408596465,1773915039952,-1000.0,4.808e-05,2]
[408596466,1773915039961,-579.0,4.808e-05,2]
[408596467,1773915039970,-160.0,4.907e-05,5]
[408596468,1773915039979,-500.0,4.981e-05,2]
[408596470,1773915039988,-8190.972692,5e-05,2]
[408596471,1773915039997,-879.70497311,5e-05,2]
[408596472,1773915040006,-187.9282094,5e-05,2]
[408596473,1773915040016,-160.0,5.013e-05,6]
[408596474,1773915040024,-578.20924308,5.093e-05,2]
[408596475,1773915040034,-2312.83697232,5.093e-05,2]
[408596476,1773915040043,-10000.00000001,5.099e-05,10]
[408596477,1773915040052,-690.0,5.117e-05,2]
[408596478,1773915040061,-571.50084669,5.117e-05,2]
[408596479,1773915040072,-166.0,5.117e-05,2]
[408596480,1773915040083,-160.0,5.12e-05,7]
[408596481,1773915040092,-305.79275598,5.12e-05,5]
[408596482,1773915040102,-894.255,5.246e-05,2]
[408596483,1773915040112,-1000.0,5.289e-05,2]
[408596484,1773915040122,-1000.0,5.289e-05,2]
[408596485,1773915040132,-1000.0,5.289e-05,2]
[408596486,1773915040140,-1708.10788143,5.302e-05,2]
[408596487,1773915040149,-162.380719,5.366e-05,2]
[408596488,1773915040159,-1210.972228,5.399e-05,2]
[408596489,1773915040168,-500.0,5.453e-05,2]
[408596490,1773915040177,-500.0,5.453e-05,2]
[408596491,1773915040186,-596.24617335,5.453e-05,2]
[408596492,1773915040195,-500.0,5.453e-05,2]
[408596493,1773915040205,-502.68943439,5.453e-05,2]
[408596494,1773915040214,-500.0,5.453e-05,2]
[408596495,1773915040223,-500.0,5.453e-05,2]
[408596496,1773915040232,-500.0,5.453e-05,2]
[408596497,1773915040241,-500.0,5.453e-05,2]
[408596498,1773915040250,-500.0,5.453e-05,2]
[408596499,1773915040259,-500.0,5.453e-05,2]
[408596500,1773915040269,-500.0,5.453e-05,2]
[408596501,1773915040278,-500.0,5.453e-05,2]
[408596502,1773915040287,-500.0,5.453e-05,2]
[408596503,1773915040296,-500.0,5.453e-05,2]
[408596504,1773915040306,-500.0,5.453e-05,2]
[408596505,1773915040315,-500.0,5.453e-05,2]
[408596506,1773915040324,-500.0,5.453e-05,2]
[408596507,1773915040334,-1210.972228,5.466e-05,2]
[408596508,1773915040345,-569.06566454,5.479e-05,2]
[408596509,1773915040365,-241.421513,5.479e-05,2]
[408596511,1773915040374,-241.421513,5.479e-05,2]
[408596512,1773915040383,-241.421513,5.479e-05,2]
[408596513,1773915040392,-241.421513,5.479e-05,2]
[408596514,1773915040403,-241.421513,5.479e-05,2]
[408596515,1773915040413,-241.421513,5.479e-05,2]
[408596517,1773915040422,-241.421513,5.479e-05,2]
[408596518,1773915040432,-241.421513,5.479e-05,2]
[408596519,1773915040440,-241.421513,5.479e-05,2]
[408596520,1773915040450,-241.421513,5.479e-05,2]
[408596521,1773915040459,-241.421513,5.479e-05,2]
[408596522,1773915040468,-241.421513,5.479e-05,2]
[408596523,1773915040478,-241.421513,5.479e-05,2]
[408596524,1773915040487,-241.421513,5.479e-05,2]
[408596525,1773915040496,-241.421513,5.479e-05,2]
[408596526,1773915040505,-241.421513,5.479e-05,2]
[408596527,1773915040515,-241.421513,5.479e-05,2]
[408596528,1773915040525,-241.421513,5.479e-05,2]
[408596529,1773915040534,-241.421513,5.479e-05,2]
[408596530,1773915040544,-241.421517,5.479e-05,2]
[408596531,1773915040554,-202.517493,5.479e-05,2]
[408596532,1773915040564,-151.0,5.479e-05,2]
[408596533,1773915040572,-151.0,5.479e-05,2]
[408596534,1773915040582,-151.0,5.479e-05,2]
[408596535,1773915040591,-158.656687,5.479e-05,2]
[408596536,1773915040601,-1007.930809,5.479e-05,2]
[408596537,1773915040612,-1007.930809,5.479e-05,2]
[408596538,1773915040622,-1007.930809,5.479e-05,2]
[408596539,1773915040631,-1007.930809,5.479e-05,2]
[408596540,1773915040640,-1007.930809,5.479e-05,2]
[408596541,1773915040650,-1007.930809,5.479e-05,2]
[408596542,1773915040659,-1007.930809,5.479e-05,2]
[408596543,1773915040668,-1007.930809,5.479e-05,2]
[408596544,1773915040677,-1007.930809,5.479e-05,2]
[408596545,1773915040692,-1007.930809,5.479e-05,2]
[408596546,1773915040702,-1007.930809,5.479e-05,2]
[408596547,1773915040712,-1007.930809,5.479e-05,2]
[408596548,1773915040722,-1007.930809,5.479e-05,2]
[408596549,1773915040731,-1007.930809,5.479e-05,2]
[408596550,1773915040742,-1007.930809,5.479e-05,2]
[408596551,1773915040753,-1007.930809,5.479e-05,2]
[408596552,1773915040763,-1007.930809,5.479e-05,2]
[408596553,1773915040772,-1007.930809,5.479e-05,2]
[408596554,1773915040781,-1007.930809,5.479e-05,2]
[408596555,1773915040790,-1007.930812,5.479e-05,2]
[408596556,1773915040801,-215.735085,5.479e-05,2]
[408596557,1773915040811,-644.535647,5.479e-05,2]
[408596558,1773915040821,-644.535647,5.479e-05,2]
[408596559,1773915040831,-644.535647,5.479e-05,2]
[408596560,1773915040842,-644.535647,5.479e-05,2]
[408596561,1773915040853,-644.535647,5.479e-05,2]
[408596562,1773915040863,-644.535647,5.479e-05,2]
[408596563,1773915040872,-644.535647,5.479e-05,2]
[408596564,1773915040882,-644.535647,5.479e-05,2]
[408596565,1773915040892,-644.535647,5.479e-05,2]
[408596566,1773915040901,-644.535647,5.479e-05,2]